[Event "Mitropa Online Cup Open 2021"]
[Site "Hybrid"]
[Date "2021.05.04"]
[Round "5.3"]
[White "Fecker, Noah"]
[Black "Droin, Augustin"]
[Result "1-0"]
[ECO "B19"]
[WhiteElo "2308"]
[BlackElo "2292"]
[Annotator "NA"]
[PlyCount "141"]
[EventDate "2021.05.04"]
[EventType "team-tourn"]
[EventCountry "NET"]
[SourceTitle "playchess.com"]
[Source "ChessBase"]
[SourceQuality "1"]
[WhiteTeam "Switzerland"]
[BlackTeam "France"]
[WhiteTeamCountry "SUI"]
[BlackTeamCountry "FRA"]
[TimeControl "40/5400+30:1800+30"]

1. e4 {[%emt 0:00:00]} c6 {[%emt 0:00:06]} 2. d4 {[%emt 0:00:07]} d5 {[%emt 0:00:06]} 3. Nc3 {[%emt 0:00:04]} dxe4 {[%emt 0:00:05]} 4. Nxe4 {[%emt 0:00:02]} Bf5 {[%emt 0:00:07]} 5. Ng3 {[%emt 0:00:15]} Bg6 {[%emt 0:00:05]} 6. h4 {[%emt 0:00:17]} h6 {[%emt 0:00:05]} 7. Nf3 {[%emt 0:00:06]} Nd7 {[%emt 0:00:22]} 8. h5 {[%emt 0:00:09]} Bh7 {[%emt 0:00:05]} 9. Bd3 {[%emt 0:00:34]} Bxd3 {[%emt 0:00:06]} 10. Qxd3 {[%emt 0:00:08]} e6 {[%emt 0:00:02]} 11. Bd2 {[%emt 0:01:28]} Ngf6 {[%emt 0:00:11]} 12. O-O-O {[%emt 0:01:29]} Be7 {[%emt 0:00:10]} 13. Ne4 {[%emt 0:00:59]} Nxe4 {[%emt 0:01:46]} 14. Qxe4 {[%emt 0:00:02]} Nf6 {[%emt 0:00:08]} 15. Qe2 {[%emt 0:04:23]} Qd5 {[%emt 0:00:18]} 16. c4 {[%emt 0:00:38]} Qe4 {[%emt 0:00:12]} 17. Qxe4 {[%emt 0:00:59]} Nxe4 {[%emt 0:00:06]} 18. Be3 {[%emt 0:00:12]} O-O {[%emt 0:03:55]} 19. Ne5 {[%emt 0:06:00]} Rfd8 {[%emt 0:03:09]} 20. Rhe1 {[%emt 0:13:14]} Nd6 {[%emt 0:10:58]} 21. g4 {[%emt 0:05:16]} Bf6 {[%emt 0:03:33]} 22. b3 {[%emt 0:03:49]} b5 {[%emt 0:05:18]} 23. Re2 {[%emt 0:25:47]} bxc4 {[%emt 0:09:50]} 24. bxc4 {[%emt 0:06:26]} a5 {[%emt 0:05:23]} 25. Rc2 {[%emt 0:01:22]} Ra6 {[%emt 0:01:02]} 26. Rb2 {[%emt 0:03:56]} a4 {[%emt 0:07:11]} 27. c5 {[%emt 0:02:18]} Nb5 {[%emt 0:00:26]} 28. Nxc6 {[%emt 0:00:53]} Rxc6 {[%emt 0:02:01]} 29. Rxb5 {[%emt 0:00:29]} Rd5 {[%emt 0:03:30]} 30. f4 {[%emt 0:05:29]} Be7 {[%emt 0:02:40]} 31. Kc2 {[%emt 0:00:44]} f5 {[%emt 0:05:37]} 32. g5 {[%emt 0:06:26]} hxg5 {[%emt 0:02:39]} 33. fxg5 {[%emt 0:00:05]} f4 {[%emt 0:05:15]} 34. Rb8+ {[%emt 0:01:41]} Kf7 {[%emt 0:00:15]} 35. g6+ {[%emt 0:02:37]} Kf6 {[%emt 0:00:06]} 36. Bxf4 {[%emt 0:02:53]} Rxh5 {[%emt 0:03:15]} 37. Rb7 {[%emt 0:00:39]} Bxc5 {[%emt 0:03:05]} 38. dxc5 {[%emt 0:00:34]} Rcxc5+ {[%emt 0:00:21]} 39. Kb2 {[%emt 0:01:18]} Kxg6 {[%emt 0:01:16]} 40. Rg1+ {[%emt 0:00:00]} Kf5 {[%emt 0:00:00]} 41. Rf7+ {[%emt 0:02:50]} Ke4 {[%emt 0:00:52]} 42. Re1+ {[%emt 0:00:59]} Kf3 {[%emt 0:04:00]} 43. Bd6+ {[%emt 0:03:32]} Rcf5 {[%emt 0:01:43]} 44. Rxg7 {[%emt 0:01:22]} e5 {[%emt 0:00:29]} 45. Re7 {[%emt 0:03:23]} Kg4 {[%emt 0:02:39]} 46. R7xe5 {[%emt 0:02:51]} Rf2+ {[%emt 0:00:36]} 47. R1e2 {[%emt 0:03:29]} Rxe2+ {[%emt 0:00:18]} 48. Rxe2 {[%emt 0:00:03]} Rh3 {[%emt 0:00:09]} 49. Re4+ {[%emt 0:01:30]} Kf5 {[%emt 0:00:06]} 50. Rxa4 {[%emt 0:00:04]} Ke6 {[%emt 0:00:05]} 51. Bb4 {[%emt 0:03:20]} Kd5 {[%emt 0:00:29]} 52. Bc3 {[%emt 0:00:14]} Kc5 {[%emt 0:00:12]} 53. Kb3 {[%emt 0:00:12]} Kb5 {[%emt 0:00:28]} 54. Ra5+ {[%emt 0:00:06]} Kb6 {[%emt 0:00:07]} 55. Rg5 {[%emt 0:00:13]} Rh4 {[%emt 0:00:40]} 56. a4 {[%emt 0:01:06]} Re4 {[%emt 0:00:59]} 57. Rg6+ {[%emt 0:00:18]} Kb7 {[%emt 0:00:06]} 58. a5 {[%emt 0:00:30]} Ka7 {[%emt 0:00:46]} 59. Bb4 {[%emt 0:00:17]} Kb7 {[%emt 0:00:48]} 60. Ka4 {[%emt 0:00:05]} Re5 {[%emt 0:00:15]} 61. Kb3 {[%emt 0:02:39]} Re4 {[%emt 0:00:55]} 62. Bc5 {[%emt 0:00:11]} Re8 {[%emt 0:00:24]} 63. Kb4 {[%emt 0:00:35]} Rc8 {[%emt 0:03:37]} 64. Kb5 {[%emt 0:03:27]} Ka8 {[%emt 0:01:06]} 65. Ka6 {[%emt 0:03:54]} Rb8 {[%emt 0:00:26]} 66. Ba7 {[%emt 0:01:48]} Rc8 {[%emt 0:01:49]} 67. Bb6 {[%emt 0:00:33]} Rb8 {[%emt 0:00:18]} 68. Bc7 {[%emt 0:00:52]} Re8 {[%emt 0:01:22]} 69. Rg7 {[%emt 0:00:59]} Rc8 {[%emt 0:02:02]} 70. Rd7 {[%emt 0:00:39]} Rg8 {[%emt 0:00:47]} 71. Bd6 {[%emt 0:00:15]} 1-0

[Event "Mitropa Online Cup Open 2021"]
[Site "Hybrid"]
[Date "2021.05.04"]
[Round "5.4"]
[White "Babula, Vlastimil"]
[Black "Blohberger, Felix"]
[Result "1/2-1/2"]
[ECO "D17"]
[WhiteElo "2559"]
[BlackElo "2463"]
[Annotator "ChessBase"]
[PlyCount "64"]
[EventDate "2021.05.04"]
[EventType "team-tourn"]
[EventCountry "NET"]
[SourceTitle "playchess.com"]
[Source "ChessBase"]
[SourceQuality "1"]
[WhiteTeam "Czech Republic"]
[BlackTeam "Austria"]
[WhiteTeamCountry "CZE"]
[BlackTeamCountry "AUT"]
[TimeControl "40/5400+30:1800+30"]

1. d4 {[%emt 0:00:00]} d5 {[%emt 0:00:08]} 2. c4 {[%emt 0:00:15]} c6 {[%emt 0:00:08]} 3. Nf3 {[%emt 0:00:31]} Nf6 {[%emt 0:00:09]} 4. Nc3 {[%emt 0:00:22]} dxc4 {[%emt 0:00:11]} 5. a4 {[%emt 0:00:43]} Bf5 {[%emt 0:00:14]} 6. Nh4 {[%emt 0:01:14]} Bg6 {[%emt 0:01:02]} 7. Nxg6 {[%emt 0:03:48]} hxg6 {[%emt 0:00:04]} 8. e3 {[%emt 0:12:54]} e6 {[%emt 0:00:04]} 9. Bxc4 {[%emt 0:00:15]} Bb4 {[%emt 0:00:02]} 10. O-O {[%emt 0:04:10]} Qc7 {[%emt 0:00:07]} 11. h3 {[%emt 0:01:40]} O-O {[%emt 0:00:08]} 12. Qc2 {[%emt 0:05:37]} Rd8 {[%emt 0:27:17]} 13. Rd1 {[%emt 0:01:35]} c5 {[%emt 0:05:03]} 14. Bd2 {[%emt 0:14:09]} Nc6 {[%emt 0:15:08]} 15. dxc5 {[%emt 0:02:07]} Ne5 {[%emt 0:04:44]} 16. Be2 {[%emt 0:18:50]} Qxc5 {[%emt 0:01:51]} 17. Be1 {[%emt 0:01:11]} Rac8 {[%emt 0:15:29]} 18. Rxd8+ {[%emt 0:05:19]} Rxd8 {[%emt 0:00:07]} 19. Rd1 {[%emt 0:03:02]} Rxd1 {[%emt 0:00:31]} 20. Qxd1 {[%emt 0:00:18]} Nd5 {[%emt 0:03:37]} 21. Nxd5 {[%emt 0:07:26]} Bxe1 {[%emt 0:00:46]} 22. Nf4 {[%emt 0:05:20]} Ba5 {[%emt 0:02:04]} 23. Nd3 {[%emt 0:00:24]} Nxd3 {[%emt 0:00:57]} 24. Bxd3 {[%emt 0:00:16]} Qb4 {[%emt 0:06:11]} 25. Qc2 {[%emt 0:03:03]} Kh7 {[%emt 0:01:34]} 26. g3 {[%emt 0:00:32]} Qd2 {[%emt 0:00:37]} 27. h4 {[%emt 0:02:14]} Qxc2 {[%emt 0:00:05]} 28. Bxc2 {[%emt 0:00:08]} Kg8 {[%emt 0:00:20]} 29. Be4 {[%emt 0:00:40]} b6 {[%emt 0:00:05]} 30. Kf1 {[%emt 0:00:21]} Kf8 {[%emt 0:00:03]} 31. Ke2 {[%emt 0:00:13]} Ke7 {[%emt 0:00:02]} 32. Bc6 {[%emt 0:00:24]} Bb4 {[%emt 0:00:09]} 1/2-1/2

[Event "Mitropa Online Cup Open 2021"]
[Site "Hybrid"]
[Date "2021.05.04"]
[Round "5.4"]
[White "Dragnev, Valentin"]
[Black "Nguyen, Thai Dai Van"]
[Result "1/2-1/2"]
[ECO "B33"]
[WhiteElo "2559"]
[BlackElo "2577"]
[Annotator "ChessBase"]
[PlyCount "79"]
[EventDate "2021.05.04"]
[EventType "team-tourn"]
[EventCountry "NET"]
[SourceTitle "playchess.com"]
[Source "ChessBase"]
[SourceQuality "1"]
[WhiteTeam "Austria"]
[BlackTeam "Czech Republic"]
[WhiteTeamCountry "AUT"]
[BlackTeamCountry "CZE"]
[TimeControl "40/5400+30:1800+30"]

1. e4 {[%emt 0:00:00]} c5 {[%emt 0:00:11]} 2. Nf3 {[%emt 0:00:07]} e6 {[%emt 0:00:05]} 3. d4 {[%emt 0:00:10]} cxd4 {[%emt 0:00:13]} 4. Nxd4 {[%emt 0:00:07]} Nf6 {[%emt 0:00:06]} 5. Nc3 {[%emt 0:00:08]} Nc6 {[%emt 0:00:05]} 6. Ndb5 {[%emt 0:00:51]} d6 {[%emt 0:00:21]} 7. Bf4 {[%emt 0:00:10]} e5 {[%emt 0:00:06]} 8. Bg5 {[%emt 0:00:05]} a6 {[%emt 0:00:07]} 9. Na3 {[%emt 0:00:11]} b5 {[%emt 0:00:07]} 10. Nd5 {[%emt 0:00:06]} Be7 {[%emt 0:00:05]} 11. Bxf6 {[%emt 0:00:18]} Bxf6 {[%emt 0:00:07]} 12. c3 {[%emt 0:00:09]} Ne7 {[%emt 0:04:43]} 13. Nxf6+ {[%emt 0:00:44]} gxf6 {[%emt 0:00:14]} 14. Nc2 {[%emt 0:00:11]} Bb7 {[%emt 0:00:06]} 15. Bd3 {[%emt 0:00:16]} d5 {[%emt 0:00:07]} 16. Qe2 {[%emt 0:02:02]} f5 {[%emt 0:00:13]} 17. exf5 {[%emt 0:07:08]} e4 {[%emt 0:00:07]} 18. f6 {[%emt 0:00:05]} Nf5 {[%emt 0:00:05]} 19. f3 {[%emt 0:04:17]} Qxf6 {[%emt 0:00:17]} 20. O-O {[%emt 0:00:35]} Qb6+ {[%emt 0:00:08]} 21. Rf2 {[%emt 0:00:37]} Nd6 {[%emt 0:00:27]} 22. Nd4 {[%emt 0:00:22]} O-O-O {[%emt 0:00:07]} 23. Bc2 {[%emt 0:00:13]} Kb8 {[%emt 0:01:54]} 24. Raf1 {[%emt 0:18:24]} b4 {[%emt 0:13:43]} 25. fxe4 {[%emt 0:12:50]} dxe4 {[%emt 0:00:21]} 26. Bb3 {[%emt 0:00:27]} Rc8 {[%emt 0:34:56]} 27. Qe3 {[%emt 0:15:50]} bxc3 {[%emt 0:03:23]} 28. bxc3 {[%emt 0:00:35]} Rhd8 {[%emt 0:01:37]} 29. Bxf7 {[%emt 0:03:46]} Qc5 {[%emt 0:11:10]} 30. Rc1 {[%emt 0:17:31]} Rc7 {[%emt 0:13:14]} 31. Bb3 {[%emt 0:03:39]} Nb5 {[%emt 0:00:47]} 32. Rf5 {[%emt 0:05:34]} Qb6 {[%emt 0:02:23]} 33. Nc2 {[%emt 0:00:12]} Qxe3+ {[%emt 0:01:42]} 34. Nxe3 {[%emt 0:00:05]} Rd3 {[%emt 0:02:06]} 35. Nc4 {[%emt 0:04:37]} Nxc3 {[%emt 0:02:26]} 36. Re1 {[%emt 0:00:33]} Bd5 {[%emt 0:04:11]} 37. Ne5 {[%emt 0:01:13]} Bxb3 {[%emt 0:01:52]} 38. axb3 {[%emt 0:00:11]} Rd5 {[%emt 0:00:21]} 39. Rf8+ {[%emt 0:00:50]} Ka7 {[%emt 0:00:35]} 40. Nc4 {[%emt 0:00:00]} 1/2-1/2

[Event "Mitropa Online Cup Open 2021"]
[Site "Hybrid"]
[Date "2021.05.04"]
[Round "5.4"]
[White "Froewis, Georg"]
[Black "Kriebel, Tadeas"]
[Result "0-1"]
[ECO "A17"]
[WhiteElo "2460"]
[BlackElo "2527"]
[Annotator "ChessBase"]
[PlyCount "84"]
[EventDate "2021.05.04"]
[EventType "team-tourn"]
[EventCountry "NET"]
[SourceTitle "playchess.com"]
[Source "ChessBase"]
[SourceQuality "1"]
[WhiteTeam "Austria"]
[BlackTeam "Czech Republic"]
[WhiteTeamCountry "AUT"]
[BlackTeamCountry "CZE"]
[TimeControl "40/5400+30:1800+30"]

1. Nf3 {[%emt 0:00:00]} Nf6 {[%emt 0:00:22]} 2. c4 {[%emt 0:00:05]} e6 {[%emt 0:00:05]} 3. Nc3 {[%emt 0:00:05]} d5 {[%emt 0:00:24]} 4. e3 {[%emt 0:00:03]} a6 {[%emt 0:01:36]} 5. b3 {[%emt 0:01:07]} b6 {[%emt 0:00:15]} 6. Bb2 {[%emt 0:04:59]} Bb7 {[%emt 0:00:17]} 7. cxd5 {[%emt 0:00:35]} exd5 {[%emt 0:00:10]} 8. Be2 {[%emt 0:02:54]} Nbd7 {[%emt 0:00:47]} 9. O-O {[%emt 0:00:12]} Bd6 {[%emt 0:02:04]} 10. Rc1 {[%emt 0:00:09]} O-O {[%emt 0:00:59]} 11. Qc2 {[%emt 0:00:52]} Re8 {[%emt 0:01:19]} 12. Qb1 {[%emt 0:00:30]} Qe7 {[%emt 0:03:42]} 13. Rfd1 {[%emt 0:09:56]} Rac8 {[%emt 0:01:48]} 14. d4 {[%emt 0:03:15]} g6 {[%emt 0:07:17]} 15. Nd2 {[%emt 0:02:46]} Nf8 {[%emt 0:07:09]} 16. Bf3 {[%emt 0:01:24]} Ne6 {[%emt 0:01:58]} 17. e4 {[%emt 0:10:46]} Nxd4 {[%emt 0:11:54]} 18. Nxd5 {[%emt 0:01:35]} Nxf3+ {[%emt 0:00:10]} 19. Nxf3 {[%emt 0:00:10]} Nxd5 {[%emt 0:00:08]} 20. exd5 {[%emt 0:00:17]} Qe4 {[%emt 0:01:20]} 21. Rd3 {[%emt 0:22:55]} Bxd5 {[%emt 0:09:12]} 22. Rcd1 {[%emt 0:10:06]} c6 {[%emt 0:00:32]} 23. Ba1 {[%emt 0:12:34]} f6 {[%emt 0:17:13]} 24. h3 {[%emt 0:02:30]} Qf5 {[%emt 0:05:24]} 25. Qb2 {[%emt 0:04:46]} Re6 {[%emt 0:00:22]} 26. Qd4 {[%emt 0:05:14]} Rce8 {[%emt 0:02:00]} 27. Qg4 {[%emt 0:01:33]} Qxd3 {[%emt 0:05:44]} 28. Qxe6+ {[%emt 0:00:03]} Rxe6 {[%emt 0:00:06]} 29. Rxd3 {[%emt 0:00:02]} Re2 {[%emt 0:00:20]} 30. Bxf6 {[%emt 0:01:18]} Rxa2 {[%emt 0:00:18]} 31. Be5 {[%emt 0:00:12]} Bxe5 {[%emt 0:03:41]} 32. Nxe5 {[%emt 0:00:04]} Ra1+ {[%emt 0:00:18]} 33. Kh2 {[%emt 0:00:04]} Ra3 {[%emt 0:00:35]} 34. Nc4 {[%emt 0:02:06]} Bxc4 {[%emt 0:00:10]} 35. Rd8+ {[%emt 0:00:03]} Kf7 {[%emt 0:01:47]} 36. bxc4 {[%emt 0:00:03]} Rc3 {[%emt 0:00:19]} 37. Rd7+ {[%emt 0:00:13]} Ke6 {[%emt 0:00:09]} 38. Rxh7 {[%emt 0:00:15]} Rxc4 {[%emt 0:00:16]} 39. g4 {[%emt 0:00:15]} a5 {[%emt 0:00:32]} 40. Kg3 {[%emt 0:00:00]} a4 {[%emt 0:00:00]} 41. h4 {[%emt 0:00:20]} Rc5 {[%emt 0:08:53]} 42. Rb7 {[%emt 0:02:23]} Rb5 {[%emt 0:00:20]} 0-1

[Event "Mitropa Online Cup Open 2021"]
[Site "Hybrid"]
[Date "2021.05.04"]
[Round "5.4"]
[White "Finek, Vaclav"]
[Black "Morgunov, Marc"]
[Result "1/2-1/2"]
[ECO "E60"]
[WhiteElo "2361"]
[BlackElo "2385"]
[Annotator "NA"]
[PlyCount "48"]
[EventDate "2021.05.04"]
[EventType "team-tourn"]
[EventCountry "NET"]
[SourceTitle "playchess.com"]
[Source "ChessBase"]
[SourceQuality "1"]
[WhiteTeam "Czech Republic"]
[BlackTeam "Austria"]
[WhiteTeamCountry "CZE"]
[BlackTeamCountry "AUT"]
[TimeControl "40/5400+30:1800+30"]

1. Nf3 {[%emt 0:00:00]} Nf6 {[%emt 0:00:18]} 2. c4 {[%emt 0:00:07]} g6 {[%emt 0:00:09]} 3. d4 {[%emt 0:00:08]} Bg7 {[%emt 0:00:15]} 4. g3 {[%emt 0:00:08]} O-O {[%emt 0:00:14]} 5. Bg2 {[%emt 0:00:07]} d6 {[%emt 0:00:10]} 6. O-O {[%emt 0:00:05]} Ne4 {[%emt 0:00:12]} 7. Nbd2 {[%emt 0:06:16]} Nxd2 {[%emt 0:04:19]} 8. Bxd2 {[%emt 0:01:34]} e5 {[%emt 0:03:01]} 9. Bc3 {[%emt 0:04:44]} e4 {[%emt 0:08:35]} 10. Nd2 {[%emt 0:02:05]} f5 {[%emt 0:00:40]} 11. e3 {[%emt 0:01:17]} c6 {[%emt 0:12:50]} 12. Qb3 {[%emt 0:08:07]} Nd7 {[%emt 0:05:53]} 13. f3 {[%emt 0:13:51]} exf3 {[%emt 0:11:00]} 14. Bxf3 {[%emt 0:00:47]} Nf6 {[%emt 0:02:34]} 15. e4 {[%emt 0:05:27]} fxe4 {[%emt 0:09:59]} 16. Nxe4 {[%emt 0:00:38]} Bh3 {[%emt 0:03:21]} 17. Nxf6+ {[%emt 0:06:35]} Rxf6 {[%emt 0:04:02]} 18. Bg2 {[%emt 0:03:53]} Bxg2 {[%emt 0:04:08]} 19. Kxg2 {[%emt 0:01:20]} Rxf1 {[%emt 0:03:32]} 20. Rxf1 {[%emt 0:00:17]} Qe7 {[%emt 0:00:34]} 21. Re1 {[%emt 0:05:09]} Qf7 {[%emt 0:02:13]} 22. Rf1 {[%emt 0:05:16]} Qe7 {[%emt 0:01:34]} 23. Re1 {[%emt 0:00:20]} Qf7 {[%emt 0:00:09]} 24. Rf1 {[%emt 0:01:13]} Qe7 {[%emt 0:00:45]} 1/2-1/2

[Event "Mitropa Online Cup Open 2021"]
[Site "Hybrid"]
[Date "2021.05.04"]
[Round "5.5"]
[White "Hera, Imre Jr."]
[Black "Gazik, Viktor"]
[Result "1/2-1/2"]
[ECO "E62"]
[WhiteElo "2610"]
[BlackElo "2542"]
[Annotator "RC"]
[PlyCount "74"]
[EventDate "2021.05.04"]
[EventType "team-tourn"]
[EventCountry "NET"]
[SourceTitle "playchess.com"]
[Source "ChessBase"]
[SourceQuality "1"]
[WhiteTeam "Hungary"]
[BlackTeam "Slovakia"]
[WhiteTeamCountry "HUN"]
[BlackTeamCountry "SVK"]
[TimeControl "40/5400+30:1800+30"]

1. d4 {[%emt 0:00:00]} Nf6 {[%emt 0:00:06]} 2. Nf3 {[%emt 0:00:25]} g6 {[%emt 0:00:07]} 3. g3 {[%emt 0:00:05]} Bg7 {[%emt 0:00:05]} 4. Bg2 {[%emt 0:00:05]} O-O {[%emt 0:00:05]} 5. O-O {[%emt 0:00:17]} d6 {[%emt 0:00:08]} 6. c4 {[%emt 0:00:06]} Nc6 {[%emt 0:00:21]} 7. Nc3 {[%emt 0:00:07]} e5 {[%emt 0:00:41]} 8. dxe5 {[%emt 0:00:20]} dxe5 {[%emt 0:00:13]} 9. Bg5 {[%emt 0:00:45]} Be6 {[%emt 0:00:14]} 10. Qc1 {[%emt 0:00:50]} Qc8 {[%emt 0:04:29]} 11. Rd1 {[%emt 0:07:33]} Nd7 {[%emt 0:03:05]} 12. b3 {[%emt 0:09:01]} f6 {[%emt 0:01:48]} 13. Bh6 {[%emt 0:00:46]} Bxh6 {[%emt 0:11:57]} 14. Qxh6 {[%emt 0:00:07]} Rf7 {[%emt 0:00:19]} 15. Qd2 {[%emt 0:19:00]} Qf8 {[%emt 0:13:14]} 16. Qb2 {[%emt 0:00:14]} Nb6 {[%emt 0:10:48]} 17. Ne1 {[%emt 0:07:54]} Re8 {[%emt 0:03:56]} 18. Nd3 {[%emt 0:00:28]} g5 {[%emt 0:16:05]} 19. c5 {[%emt 0:07:42]} Nc8 {[%emt 0:02:19]} 20. b4 {[%emt 0:00:28]} h5 {[%emt 0:01:02]} 21. b5 {[%emt 0:01:59]} Na5 {[%emt 0:04:15]} 22. Qb4 {[%emt 0:01:49]} b6 {[%emt 0:00:08]} 23. Rac1 {[%emt 0:10:05]} Ne7 {[%emt 0:00:46]} 24. Ne4 {[%emt 0:11:13]} Nf5 {[%emt 0:01:08]} 25. cxb6 {[%emt 0:03:44]} cxb6 {[%emt 0:04:38]} 26. Qxf8+ {[%emt 0:00:46]} Rexf8 {[%emt 0:01:30]} 27. Nc3 {[%emt 0:01:44]} Rc8 {[%emt 0:01:35]} 28. e3 {[%emt 0:00:18]} Rd7 {[%emt 0:03:08]} 29. Bf1 {[%emt 0:01:43]} Kg7 {[%emt 0:00:43]} 30. Be2 {[%emt 0:01:09]} h4 {[%emt 0:06:43]} 31. Ne4 {[%emt 0:03:58]} Rxc1 {[%emt 0:01:11]} 32. Nxc1 {[%emt 0:02:27]} Rxd1+ {[%emt 0:00:59]} 33. Bxd1 {[%emt 0:00:02]} hxg3 {[%emt 0:00:05]} 34. hxg3 {[%emt 0:00:02]} Bd5 {[%emt 0:05:57]} 35. Nc3 {[%emt 0:03:23]} Bc4 {[%emt 0:00:04]} 36. Bc2 {[%emt 0:00:11]} Nd6 {[%emt 0:00:09]} 37. a4 {[%emt 0:00:02]} Kf7 {[%emt 0:01:46]} 1/2-1/2

[Event "Mitropa Online Cup Open 2021"]
[Site "Hybrid"]
[Date "2021.05.04"]
[Round "5.5"]
[White "Pechac, Jergus"]
[Black "Mihok, Oliver"]
[Result "1/2-1/2"]
[ECO "E94"]
[WhiteElo "2519"]
[BlackElo "2547"]
[Annotator "ChessBase"]
[PlyCount "95"]
[EventDate "2021.05.04"]
[EventType "team-tourn"]
[EventCountry "NET"]
[SourceTitle "playchess.com"]
[Source "ChessBase"]
[SourceQuality "1"]
[WhiteTeam "Slovakia"]
[BlackTeam "Hungary"]
[WhiteTeamCountry "SVK"]
[BlackTeamCountry "HUN"]
[TimeControl "40/5400+30:1800+30"]

1. Nf3 {[%emt 0:00:00]} Nf6 {[%emt 0:00:17]} 2. c4 {[%emt 0:00:07]} g6 {[%emt 0:00:05]} 3. Nc3 {[%emt 0:00:13]} Bg7 {[%emt 0:00:05]} 4. e4 {[%emt 0:00:16]} d6 {[%emt 0:00:08]} 5. d4 {[%emt 0:00:05]} O-O {[%emt 0:00:28]} 6. Be2 {[%emt 0:00:06]} e5 {[%emt 0:00:08]} 7. O-O {[%emt 0:00:06]} c6 {[%emt 0:00:21]} 8. Re1 {[%emt 0:06:07]} exd4 {[%emt 0:01:12]} 9. Nxd4 {[%emt 0:00:33]} Re8 {[%emt 0:00:53]} 10. Bf1 {[%emt 0:06:11]} Ng4 {[%emt 0:00:44]} 11. Nf3 {[%emt 0:02:20]} Qb6 {[%emt 0:13:34]} 12. Qc2 {[%emt 0:01:03]} Nd7 {[%emt 0:07:48]} 13. h3 {[%emt 0:01:31]} Nge5 {[%emt 0:01:15]} 14. Nxe5 {[%emt 0:00:22]} dxe5 {[%emt 0:02:10]} 15. Be3 {[%emt 0:06:09]} Qc7 {[%emt 0:02:09]} 16. Red1 {[%emt 0:03:22]} Bf8 {[%emt 0:11:49]} 17. Na4 {[%emt 0:02:01]} b6 {[%emt 0:01:47]} 18. a3 {[%emt 0:01:18]} Nc5 {[%emt 0:05:16]} 19. Nxc5 {[%emt 0:03:46]} Bxc5 {[%emt 0:03:20]} 20. Bxc5 {[%emt 0:03:33]} bxc5 {[%emt 0:00:06]} 21. b4 {[%emt 0:00:06]} Be6 {[%emt 0:03:39]} 22. Qc3 {[%emt 0:01:14]} cxb4 {[%emt 0:07:32]} 23. axb4 {[%emt 0:00:18]} c5 {[%emt 0:08:34]} 24. bxc5 {[%emt 0:03:15]} a5 {[%emt 0:01:56]} 25. Rd5 {[%emt 0:31:34]} Bd7 {[%emt 0:01:49]} 26. Bd3 {[%emt 0:02:55]} a4 {[%emt 0:04:32]} 27. Bc2 {[%emt 0:01:02]} Ra7 {[%emt 0:01:59]} 28. h4 {[%emt 0:02:16]} h5 {[%emt 0:02:45]} 29. Ra3 {[%emt 0:00:56]} Re6 {[%emt 0:02:06]} 30. Qa1 {[%emt 0:02:37]} Bc6 {[%emt 0:05:07]} 31. Bd1 {[%emt 0:02:01]} Re7 {[%emt 0:02:47]} 32. Qc1 {[%emt 0:02:25]} Ra5 {[%emt 0:01:49]} 33. Rc3 {[%emt 0:00:26]} a3 {[%emt 0:00:57]} 34. Rxa3 {[%emt 0:00:56]} Bxd5 {[%emt 0:00:12]} 35. Rxa5 {[%emt 0:00:33]} Qxa5 {[%emt 0:01:27]} 36. cxd5 {[%emt 0:00:34]} Qe1+ {[%emt 0:00:54]} 37. Kh2 {[%emt 0:00:05]} Qxf2 {[%emt 0:00:10]} 38. c6 {[%emt 0:06:15]} Qxh4+ {[%emt 0:00:44]} 39. Kg1 {[%emt 0:00:05]} Qe1+ {[%emt 0:00:33]} 40. Kh2 {[%emt 0:00:00]} Qh4+ {[%emt 0:00:00]} 41. Kg1 {[%emt 0:00:27]} Qxe4 {[%emt 0:16:39]} 42. c7 {[%emt 0:00:09]} Qd4+ {[%emt 0:03:39]} 43. Kh2 {[%emt 0:00:44]} Rxc7 {[%emt 0:02:50]} 44. Qxc7 {[%emt 0:00:18]} Qh4+ {[%emt 0:00:13]} 45. Kg1 {[%emt 0:00:11]} Qd4+ {[%emt 0:00:05]} 46. Kh2 {[%emt 0:00:05]} Qh4+ {[%emt 0:00:02]} 47. Kg1 {[%emt 0:00:06]} Qd4+ {[%emt 0:00:02]} 48. Kh2 {[%emt 0:00:03]} 1/2-1/2